[Event "23rd ETCC Women 2021"]
[Site "Catez"]
[Date "2021.11.15"]
[Round "3.57"]
[White "Cvitan, Ena"]
[Black "Novkovic, Julia"]
[Result "1/2-1/2"]
[ECO "D20"]
[WhiteElo "2234"]
[BlackElo "2082"]
[Annotator "ChessBase"]
[PlyCount "93"]
[EventDate "2021.11.08"]
[EventType "team-tourn"]
[EventCountry "SLO"]
[SourceTitle "playchess.com"]
[Source "ChessBase"]
[SourceQuality "1"]
[WhiteTeam "Croatia"]
[BlackTeam "Austria"]
[WhiteTeamCountry "CRO"]
[BlackTeamCountry "AUT"]
[TimeControl "40/5400+30:1800+30"]

1. d4 {[%emt 0:00:13]} d5 {[%emt 0:00:08]} 2. c4 {[%emt 0:00:15]} dxc4 {
[%emt 0:00:04]} 3. e3 {[%emt 0:00:07]} e5 {[%emt 0:00:41]} 4. Bxc4 {[%emt 0:00:
20]} exd4 {[%emt 0:00:06]} 5. exd4 {[%emt 0:00:53]} Bd6 {[%emt 0:00:24]} 6. Nf3
{[%emt 0:00:07]} Nf6 {[%emt 0:00:11]} 7. Qe2+ {[%emt 0:00:08]} Qe7 {[%emt 0:00:
41]} 8. Qxe7+ {[%emt 0:00:08]} Bxe7 {[%emt 0:00:05]} 9. O-O {[%emt 0:00:49]}
O-O {[%emt 0:00:47]} 10. Nc3 {[%emt 0:03:55]} Nbd7 {[%emt 0:08:20]} 11. Re1 {
[%emt 0:02:41]} Bd6 {[%emt 0:01:32]} 12. Bb3 {[%emt 0:03:59]} h6 {[%emt 0:12:
23]} 13. Be3 {[%emt 0:16:06]} Nb6 {[%emt 0:05:27]} 14. Nb5 {[%emt 0:05:46]}
Nfd5 {[%emt 0:04:33]} 15. Bd2 {[%emt 0:07:10]} a5 {[%emt 0:04:40]} 16. a4 {
[%emt 0:07:40]} Bd7 {[%emt 0:04:05]} 17. Ne5 {[%emt 0:02:04]} Bxb5 {[%emt 0:14:
51]} 18. axb5 {[%emt 0:00:45]} a4 {[%emt 0:00:10]} 19. Ba2 {[%emt 0:10:59]} Bb4
{[%emt 0:03:23]} 20. Bxd5 {[%emt 0:01:36]} Bxd2 {[%emt 0:10:05]} 21. Bxb7 {
[%emt 0:00:31]} Bxe1 {[%emt 0:00:27]} 22. Bxa8 {[%emt 0:01:17]} Rxa8 {[%emt 0:
04:05]} 23. Rxe1 {[%emt 0:00:09]} Ra5 {[%emt 0:00:08]} 24. g3 {[%emt 0:08:55]}
Rxb5 {[%emt 0:01:54]} 25. Re2 {[%emt 0:00:07]} f6 {[%emt 0:07:42]} 26. Nc6 {
[%emt 0:09:15]} Nc4 {[%emt 0:02:12]} 27. Rc2 {[%emt 0:00:47]} Nxb2 {[%emt 0:01:
17]} 28. Ne7+ {[%emt 0:00:04]} Kf8 {[%emt 0:10:01]} 29. Rxc7 {[%emt 0:00:06]}
a3 {[%emt 0:00:16]} 30. Ng6+ {[%emt 0:02:46]} Ke8 {[%emt 0:00:42]} 31. Ra7 {
[%emt 0:00:52]} Nc4 {[%emt 0:00:38]} 32. Ra4 {[%emt 0:00:29]} Ra5 {[%emt 0:00:
57]} 33. Rxc4 {[%emt 0:00:08]} a2 {[%emt 0:00:04]} 34. Rc1 {[%emt 0:00:21]}
a1=Q {[%emt 0:00:38]} 35. Rxa1 {[%emt 0:00:04]} Rxa1+ {[%emt 0:00:04]} 36. Kg2
{[%emt 0:00:06]} Rd1 {[%emt 0:00:16]} 37. h4 {[%emt 0:01:51]} Rxd4 {[%emt 0:00:
45]} 38. h5 {[%emt 0:00:48]} Kf7 {[%emt 0:01:07]} 39. f3 {[%emt 0:02:17]} Ra4 {
[%emt 0:01:17]} 40. Kh3 {[%emt 0:01:14]} Ke6 {[%emt 0:01:09]} 41. Nh4 {[%emt 0:
31:12]} Ra1 {[%emt 0:03:18]} 42. g4 {[%emt 0:00:00]} Ra5 {[%emt 0:04:18]} 43.
Kg3 {[%emt 0:00:00]} Rg5 {[%emt 0:02:48]} 44. Kf4 {[%emt 0:00:00]} Ra5 {
[%emt 0:00:23]} 45. Kg3 {[%emt 0:00:00]} Ke5 {[%emt 0:01:16]} 46. Ng6+ {
[%emt 0:00:00]} Ke6 {[%emt 0:05:28]} 47. Nh4 {[%emt 0:02:02]} 1/2-1/2

[Event "23rd ETCC Women 2021"]
[Site "Catez"]
[Date "2021.11.15"]
[Round "3.58"]
[White "Hapala, Elisabeth"]
[Black "Berke, Ana"]
[Result "0-1"]
[ECO "B78"]
[WhiteElo "2139"]
[BlackElo "2135"]
[Annotator "ChessBase"]
[PlyCount "110"]
[EventDate "2021.11.08"]
[EventType "team-tourn"]
[EventCountry "SLO"]
[SourceTitle "playchess.com"]
[Source "ChessBase"]
[SourceQuality "1"]
[WhiteTeam "Austria"]
[BlackTeam "Croatia"]
[WhiteTeamCountry "AUT"]
[BlackTeamCountry "CRO"]
[TimeControl "40/5400+30:1800+30"]

1. e4 {[%emt 0:00:01]} c5 {[%emt 0:00:31]} 2. Nf3 {[%emt 0:00:04]} d6 {[%emt 0:
00:19]} 3. d4 {[%emt 0:00:04]} cxd4 {[%emt 0:00:05]} 4. Nxd4 {[%emt 0:00:02]}
Nf6 {[%emt 0:00:07]} 5. Nc3 {[%emt 0:00:04]} g6 {[%emt 0:00:13]} 6. Be3 {
[%emt 0:00:33]} Bg7 {[%emt 0:00:11]} 7. f3 {[%emt 0:00:22]} O-O {[%emt 0:00:12]
} 8. Qd2 {[%emt 0:00:09]} Nc6 {[%emt 0:00:07]} 9. Bc4 {[%emt 0:01:25]} Bd7 {
[%emt 0:00:13]} 10. O-O-O {[%emt 0:00:41]} Rb8 {[%emt 0:00:06]} 11. h4 {
[%emt 0:06:04]} b5 {[%emt 0:00:49]} 12. Bb3 {[%emt 0:00:21]} Na5 {[%emt 0:02:
48]} 13. Bh6 {[%emt 0:10:55]} Bxh6 {[%emt 0:00:39]} 14. Qxh6 {[%emt 0:00:02]}
e5 {[%emt 0:01:05]} 15. Nde2 {[%emt 0:01:42]} b4 {[%emt 0:02:29]} 16. Nd5 {
[%emt 0:02:46]} Nxb3+ {[%emt 0:00:14]} 17. cxb3 {[%emt 0:03:15]} Nxd5 {[%emt 0:
02:37]} 18. Rxd5 {[%emt 0:00:07]} Rb6 {[%emt 0:06:32]} 19. h5 {[%emt 0:09:09]}
g5 {[%emt 0:04:56]} 20. f4 {[%emt 0:21:18]} f6 {[%emt 0:01:40]} 21. fxg5 {
[%emt 0:02:37]} fxg5 {[%emt 0:03:36]} 22. Kb1 {[%emt 0:13:11]} Qf6 {[%emt 0:06:
29]} 23. Qxf6 {[%emt 0:00:17]} Rxf6 {[%emt 0:00:04]} 24. Ng3 {[%emt 0:12:35]}
Rf2 {[%emt 0:03:14]} 25. Nf5 {[%emt 0:07:15]} Bxf5 {[%emt 0:02:28]} 26. exf5 {
[%emt 0:00:01]} Rxf5 {[%emt 0:00:38]} 27. Rhd1 {[%emt 0:03:59]} Rf6 {[%emt 0:
00:38]} 28. Kc2 {[%emt 0:02:18]} Kf7 {[%emt 0:02:44]} 29. Kd3 {[%emt 0:00:04]}
Ke6 {[%emt 0:00:46]} 30. Ke3 {[%emt 0:00:21]} Rh6 {[%emt 0:00:56]} 31. g4 {
[%emt 0:00:42]} Rf6 {[%emt 0:00:11]} 32. Ra5 {[%emt 0:02:26]} a6 {[%emt 0:00:
37]} 33. Rc1 {[%emt 0:00:49]} Rf4 {[%emt 0:04:22]} 34. Rc4 {[%emt 0:01:13]} d5
{[%emt 0:02:02]} 35. Rc7 {[%emt 0:00:02]} d4+ {[%emt 0:03:40]} 36. Kd3 {
[%emt 0:00:05]} Rxg4 {[%emt 0:03:13]} 37. Rxh7 {[%emt 0:00:02]} Rg3+ {[%emt 0:
00:36]} 38. Kd2 {[%emt 0:01:44]} Kf5 {[%emt 0:04:05]} 39. Rf7+ {[%emt 0:00:03]}
Ke4 {[%emt 0:00:30]} 40. Re7 {[%emt 0:00:35]} Rg2+ {[%emt 0:00:24]} 41. Ke1 {
[%emt 0:30:39]} Rb5 {[%emt 0:31:37]} 42. Rxb5 {[%emt 0:00:00]} axb5 {[%emt 0:
00:00]} 43. a4 {[%emt 0:00:00]} bxa4 {[%emt 0:00:00]} 44. bxa4 {[%emt 0:00:00]}
Rh2 {[%emt 0:00:00]} 45. a5 {[%emt 0:00:00]} Rxh5 {[%emt 0:00:00]} 46. a6 {
[%emt 0:00:00]} Rh1+ {[%emt 0:00:00]} 47. Kd2 {[%emt 0:00:00]} Ra1 {[%emt 0:00:
00]} 48. a7 {[%emt 0:00:00]} g4 {[%emt 0:00:00]} 49. Rg7 {[%emt 0:00:00]} g3 {
[%emt 0:00:00]} 50. Rxg3 {[%emt 0:00:00]} Rxa7 {[%emt 0:00:00]} 51. Rh3 {
[%emt 0:00:00]} Rg7 {[%emt 0:00:00]} 52. b3 {[%emt 0:00:00]} Rg2+ {[%emt 0:00:
00]} 53. Kd1 {[%emt 0:00:00]} d3 {[%emt 0:00:00]} 54. Rh4+ {[%emt 0:00:00]} Ke3
{[%emt 0:00:00]} 55. Rh3+ {[%emt 0:00:00]} Kd4 {[%emt 0:00:00]} 0-1

[Event "23rd ETCC Women 2021"]
[Site "Catez"]
[Date "2021.11.15"]
[Round "3.59"]
[White "Radikovic, Anamarija"]
[Black "Froewis, Annika"]
[Result "1/2-1/2"]
[ECO "E01"]
[WhiteElo "2124"]
[BlackElo "2079"]
[Annotator "ChessBase"]
[PlyCount "123"]
[EventDate "2021.11.08"]
[EventType "team-tourn"]
[EventCountry "SLO"]
[SourceTitle "playchess.com"]
[Source "ChessBase"]
[SourceQuality "1"]
[WhiteTeam "Croatia"]
[BlackTeam "Austria"]
[WhiteTeamCountry "CRO"]
[BlackTeamCountry "AUT"]
[TimeControl "40/5400+30:1800+30"]

1. d4 {[%emt 0:00:01]} d5 {[%emt 0:00:04]} 2. c4 {[%emt 0:00:04]} e6 {[%emt 0:
00:03]} 3. Nf3 {[%emt 0:00:03]} Nf6 {[%emt 0:00:08]} 4. g3 {[%emt 0:00:04]}
Bb4+ {[%emt 0:00:39]} 5. Bd2 {[%emt 0:00:10]} Bd6 {[%emt 0:00:11]} 6. Nc3 {
[%emt 0:03:32]} O-O {[%emt 0:08:31]} 7. Qc2 {[%emt 0:00:58]} Nbd7 {[%emt 0:03:
17]} 8. cxd5 {[%emt 0:12:52]} exd5 {[%emt 0:02:33]} 9. Nb5 {[%emt 0:00:06]} Ne4
{[%emt 0:02:35]} 10. Nxd6 {[%emt 0:03:32]} cxd6 {[%emt 0:10:59]} 11. Bg2 {
[%emt 0:06:52]} Re8 {[%emt 0:03:56]} 12. O-O {[%emt 0:08:16]} Ndf6 {[%emt 0:09:
18]} 13. Bg5 {[%emt 0:18:18]} Bg4 {[%emt 0:06:16]} 14. Be3 {[%emt 0:06:44]} Qd7
{[%emt 0:05:40]} 15. Rfc1 {[%emt 0:09:18]} Rac8 {[%emt 0:10:41]} 16. Qd3 {
[%emt 0:02:46]} h6 {[%emt 0:05:47]} 17. Ne1 {[%emt 0:07:02]} Bh3 {[%emt 0:08:
59]} 18. f3 {[%emt 0:06:07]} Ng5 {[%emt 0:01:51]} 19. Bxg5 {[%emt 0:00:06]}
hxg5 {[%emt 0:00:54]} 20. Bxh3 {[%emt 0:00:44]} Qxh3 {[%emt 0:00:30]} 21. Ng2 {
[%emt 0:00:30]} Qe6 {[%emt 0:00:30]} 22. Rxc8 {[%emt 0:00:30]} Rxc8 {[%emt 0:
00:30]} 23. Ne3 {[%emt 0:00:30]} Re8 {[%emt 0:00:30]} 24. Kf2 {[%emt 0:06:21]}
g4 {[%emt 0:00:30]} 25. Rc1 {[%emt 0:00:30]} g6 {[%emt 0:11:14]} 26. Ng2 {
[%emt 0:04:34]} Kg7 {[%emt 0:03:41]} 27. Rc7 {[%emt 0:02:14]} gxf3 {[%emt 0:01:
05]} 28. exf3 {[%emt 0:00:15]} Re7 {[%emt 0:02:53]} 29. Rxe7 {[%emt 0:01:02]}
Qxe7 {[%emt 0:00:01]} 30. Qb5 {[%emt 0:00:38]} Qc7 {[%emt 0:00:23]} 31. Ne3 {
[%emt 0:00:35]} Qc1 {[%emt 0:01:01]} 32. Qb4 {[%emt 0:00:26]} b6 {[%emt 0:00:
25]} 33. Qc3 {[%emt 0:00:30]} Qxc3 {[%emt 0:00:50]} 34. bxc3 {[%emt 0:00:05]}
b5 {[%emt 0:00:24]} 35. h4 {[%emt 0:00:24]} Kf8 {[%emt 0:00:21]} 36. g4 {
[%emt 0:00:10]} Ke7 {[%emt 0:00:46]} 37. g5 {[%emt 0:00:06]} Ne8 {[%emt 0:00:
16]} 38. Nxd5+ {[%emt 0:00:06]} Ke6 {[%emt 0:00:07]} 39. Ne3 {[%emt 0:01:28]}
d5 {[%emt 0:01:05]} 40. Kg3 {[%emt 0:01:16]} Nd6 {[%emt 0:00:22]} 41. Nd1 {
[%emt 0:30:44]} a5 {[%emt 0:06:13]} 42. Nb2 {[%emt 0:00:00]} Nf5+ {[%emt 0:07:
25]} 43. Kg4 {[%emt 0:00:00]} Ne3+ {[%emt 0:00:39]} 44. Kh3 {[%emt 0:09:09]} a4
{[%emt 0:05:43]} 45. Nd3 {[%emt 0:00:00]} Kf5 {[%emt 0:05:54]} 46. Ne5 {
[%emt 0:00:00]} Ke6 {[%emt 0:04:40]} 47. h5 {[%emt 0:00:00]} gxh5 {[%emt 0:00:
22]} 48. Kh4 {[%emt 0:00:00]} f6 {[%emt 0:01:40]} 49. Nd3 {[%emt 0:00:00]} Kf5
{[%emt 0:00:59]} 50. f4 {[%emt 0:00:00]} fxg5+ {[%emt 0:01:33]} 51. fxg5 {
[%emt 0:00:00]} Kg6 {[%emt 0:00:19]} 52. Ne5+ {[%emt 0:00:00]} Kg7 {[%emt 0:00:
19]} 53. Kxh5 {[%emt 0:00:00]} Nd1 {[%emt 0:00:05]} 54. Ng4 {[%emt 0:00:00]}
Nxc3 {[%emt 0:00:06]} 55. Nh6 {[%emt 0:00:00]} b4 {[%emt 0:01:19]} 56. Nf5+ {
[%emt 0:00:00]} Kg8 {[%emt 0:00:46]} 57. g6 {[%emt 0:00:00]} Ne4 {[%emt 0:00:
37]} 58. Kh6 {[%emt 0:00:00]} Nf6 {[%emt 0:00:31]} 59. Kg5 {[%emt 0:00:00]}
Ne4+ {[%emt 0:00:26]} 60. Kh6 {[%emt 0:00:00]} Nf6 {[%emt 0:00:11]} 61. Kg5 {
[%emt 0:00:22]} Ne4+ {[%emt 0:00:10]} 62. Kh6 {[%emt 0:00:49]} 1/2-1/2

[Event "23rd ETCC Women 2021"]
[Site "Catez"]
[Date "2021.11.15"]
[Round "3.60"]
[White "Mayrhuber, Nikola"]
[Black "Vujnovic, Patricija"]
[Result "1-0"]
[ECO "A68"]
[WhiteElo "2091"]
[BlackElo "2151"]
[Annotator "ChessBase"]
[PlyCount "55"]
[EventDate "2021.11.08"]
[EventType "team-tourn"]
[EventCountry "SLO"]
[SourceTitle "playchess.com"]
[Source "ChessBase"]
[SourceQuality "1"]
[WhiteTeam "Austria"]
[BlackTeam "Croatia"]
[WhiteTeamCountry "AUT"]
[BlackTeamCountry "CRO"]
[TimeControl "40/5400+30:1800+30"]

1. d4 {[%emt 0:00:06]} Nf6 {[%emt 0:00:14]} 2. c4 {[%emt 0:00:16]} e6 {[%emt 0:
00:12]} 3. Nc3 {[%emt 0:00:07]} c5 {[%emt 0:00:13]} 4. d5 {[%emt 0:00:11]} exd5
{[%emt 0:00:21]} 5. cxd5 {[%emt 0:00:07]} d6 {[%emt 0:00:07]} 6. e4 {[%emt 0:
00:14]} g6 {[%emt 0:00:50]} 7. f4 {[%emt 0:00:11]} Bg7 {[%emt 0:00:17]} 8. Nf3
{[%emt 0:00:11]} O-O {[%emt 0:03:42]} 9. Be2 {[%emt 0:00:29]} Na6 {[%emt 0:04:
34]} 10. O-O {[%emt 0:10:24]} Nc7 {[%emt 0:00:46]} 11. e5 {[%emt 0:26:22]} Nfe8
12. Bc4 {[%emt 0:19:56]} Rb8 {[%emt 0:14:50]} 13. a4 {[%emt 0:00:00]} Bg4 {
[%emt 0:09:01]} 14. Qe1 {[%emt 0:00:00]} Qe7 {[%emt 0:12:56]} 15. Ng5 {[%emt 0:
00:00]} h6 {[%emt 0:12:51]} 16. Qg3 {[%emt 0:05:36]} hxg5 {[%emt 0:17:54]} 17.
Qxg4 {[%emt 0:00:11]} dxe5 {[%emt 0:04:32]} 18. f5 {[%emt 0:07:55]} Nd6 {
[%emt 0:01:22]} 19. fxg6 {[%emt 0:02:46]} fxg6 {[%emt 0:05:26]} 20. Bxg5 {
[%emt 0:00:40]} Qe8 {[%emt 0:06:24]} 21. Rxf8+ {[%emt 0:01:38]} Bxf8 {[%emt 0:
00:05]} 22. Ne4 {[%emt 0:03:54]} Qc8 {[%emt 0:00:55]} 23. Nf6+ {[%emt 0:01:40]}
Kf7 {[%emt 0:01:41]} 24. Nd7 {[%emt 0:09:52]} Bg7 {[%emt 0:00:29]} 25. Rf1+ {
[%emt 0:01:43]} Ke8 {[%emt 0:00:19]} 26. Bd3 {[%emt 0:02:02]} e4 {[%emt 0:02:
11]} 27. Bxe4 {[%emt 0:01:09]} Bd4+ {[%emt 0:01:05]} 28. Kh1 {[%emt 0:00:26]}
1-0

[Event "23rd ETCC Women 2021"]
[Site "Catez"]
[Date "2021.11.15"]
[Round "4.1"]
[White "Dzagnidze, Nana"]
[Black "Goryachkina, Aleksandra"]
[Result "1/2-1/2"]
[ECO "D31"]
[WhiteElo "2524"]
[BlackElo "2604"]
[Annotator "ChessBase"]
[PlyCount "61"]
[EventDate "2021.11.08"]
[EventType "team-tourn"]
[EventCountry "SLO"]
[SourceTitle "playchess.com"]
[Source "ChessBase"]
[SourceQuality "1"]
[WhiteTeam "Georgia"]
[BlackTeam "Russia"]
[WhiteTeamCountry "GEO"]
[BlackTeamCountry "RUS"]
[TimeControl "40/5400+30:1800+30"]

1. c4 {[%emt 0:00:05]} c6 {[%emt 0:00:15]} 2. Nc3 {[%emt 0:01:08]} d5 {[%emt 0:
00:17]} 3. d4 {[%emt 0:00:09]} Nf6 {[%emt 0:00:12]} 4. e3 {[%emt 0:00:08]} e6 {
[%emt 0:00:23]} 5. b3 {[%emt 0:00:20]} Bb4 {[%emt 0:01:26]} 6. Bd2 {[%emt 0:00:
39]} O-O {[%emt 0:01:39]} 7. Qc2 {[%emt 0:00:43]} Nbd7 {[%emt 0:02:10]} 8. a3 {
[%emt 0:01:58]} Be7 {[%emt 0:06:34]} 9. Nf3 {[%emt 0:08:32]} b6 {[%emt 0:01:36]
} 10. cxd5 {[%emt 0:02:54]} cxd5 {[%emt 0:03:14]} 11. Bd3 {[%emt 0:01:36]} Bb7
{[%emt 0:01:30]} 12. O-O {[%emt 0:00:29]} Rc8 {[%emt 0:01:03]} 13. Rfc1 {
[%emt 0:15:09]} Ne4 {[%emt 0:07:02]} 14. Be1 {[%emt 0:00:19]} Bd6 {[%emt 0:01:
05]} 15. Qe2 {[%emt 0:00:46]} Nxc3 {[%emt 0:02:34]} 16. Bxc3 {[%emt 0:02:24]}
Qe7 {[%emt 0:00:56]} 17. a4 {[%emt 0:19:32]} a5 {[%emt 0:08:22]} 18. Rc2 {
[%emt 0:03:31]} Nf6 {[%emt 0:03:55]} 19. Rac1 {[%emt 0:01:02]} Rc7 {[%emt 0:12:
20]} 20. Be1 {[%emt 0:01:58]} Rfc8 {[%emt 0:00:45]} 21. Rxc7 {[%emt 0:16:01]}
Rxc7 {[%emt 0:00:55]} 22. Rc2 {[%emt 0:00:18]} Ne4 {[%emt 0:02:55]} 23. Qd1 {
[%emt 0:02:19]} f6 {[%emt 0:09:32]} 24. Qc1 {[%emt 0:00:28]} Kf7 {[%emt 0:03:
05]} 25. Nd2 {[%emt 0:04:04]} Nxd2 {[%emt 0:02:07]} 26. Bxd2 {[%emt 0:00:21]}
g6 {[%emt 0:00:58]} 27. Rxc7 {[%emt 0:01:56]} Qxc7 {[%emt 0:00:09]} 28. Qxc7+ {
[%emt 0:00:23]} Bxc7 {[%emt 0:00:02]} 29. f4 {[%emt 0:01:07]} Bd6 {[%emt 0:00:
25]} 30. Kf2 {[%emt 0:00:31]} Bc6 {[%emt 0:01:52]} 31. Bc3 {[%emt 0:00:50]}
1/2-1/2

[Event "23rd ETCC Women 2021"]
[Site "Catez"]
[Date "2021.11.15"]
[Round "4.2"]
[White "Lagno, Kateryna"]
[Black "Javakhishvili, Lela"]
[Result "1/2-1/2"]
[ECO "B49"]
[WhiteElo "2550"]
[BlackElo "2446"]
[Annotator "ChessBase"]
[PlyCount "61"]
[EventDate "2021.11.08"]
[EventType "team-tourn"]
[EventCountry "SLO"]
[SourceTitle "playchess.com"]
[Source "ChessBase"]
[SourceQuality "1"]
[WhiteTeam "Russia"]
[BlackTeam "Georgia"]
[WhiteTeamCountry "RUS"]
[BlackTeamCountry "GEO"]
[TimeControl "40/5400+30:1800+30"]

1. e4 {[%emt 0:00:03]} c5 {[%emt 0:00:07]} 2. Nf3 {[%emt 0:00:07]} e6 {[%emt 0:
00:07]} 3. d4 {[%emt 0:00:11]} cxd4 {[%emt 0:00:06]} 4. Nxd4 {[%emt 0:00:04]}
Nc6 {[%emt 0:00:09]} 5. Nc3 {[%emt 0:00:10]} Qc7 {[%emt 0:00:06]} 6. Be3 {
[%emt 0:00:29]} a6 {[%emt 0:00:07]} 7. a3 {[%emt 0:00:18]} b5 {[%emt 0:01:22]}
8. Nxc6 {[%emt 0:00:57]} Qxc6 {[%emt 0:00:07]} 9. Be2 {[%emt 0:00:22]} Bb7 {
[%emt 0:00:47]} 10. O-O {[%emt 0:00:33]} Qc7 {[%emt 0:03:37]} 11. Qd2 {[%emt 0:
06:51]} Nf6 {[%emt 0:00:44]} 12. Bf3 {[%emt 0:00:51]} Bd6 {[%emt 0:07:57]} 13.
h3 {[%emt 0:03:10]} Be5 {[%emt 0:05:19]} 14. Bd4 {[%emt 0:05:24]} O-O {[%emt 0:
00:28]} 15. Rfd1 {[%emt 0:02:24]} Bxd4 {[%emt 0:09:21]} 16. Qxd4 {[%emt 0:00:
20]} Rfd8 {[%emt 0:01:49]} 17. Rd3 {[%emt 0:15:43]} e5 {[%emt 0:16:52]} 18. Qe3
{[%emt 0:08:27]} Bc6 {[%emt 0:00:51]} 19. Rad1 {[%emt 0:01:02]} Qb7 {[%emt 0:
01:29]} 20. Qc5 {[%emt 0:20:24]} Re8 {[%emt 0:04:17]} 21. Rd6 {[%emt 0:03:25]}
Qa7 {[%emt 0:06:34]} 22. Qb4 {[%emt 0:02:08]} a5 {[%emt 0:00:47]} 23. Qb3 {
[%emt 0:00:03]} Rab8 {[%emt 0:01:08]} 24. Ne2 {[%emt 0:00:32]} Re6 {[%emt 0:02:
12]} 25. Ng3 {[%emt 0:05:54]} Qc5 {[%emt 0:03:19]} 26. R6d2 {[%emt 0:01:30]} g6
{[%emt 0:00:59]} 27. c3 {[%emt 0:03:37]} Ree8 {[%emt 0:02:40]} 28. Rd6 {
[%emt 0:01:44]} Re6 {[%emt 0:00:51]} 29. R6d2 {[%emt 0:00:09]} Ree8 {[%emt 0:
01:42]} 30. Rd6 {[%emt 0:00:05]} Re6 {[%emt 0:00:44]} 31. R6d2 {[%emt 0:00:04]}
1/2-1/2

[Event "23rd ETCC Women 2021"]
[Site "Catez"]
[Date "2021.11.15"]
[Round "4.3"]
[White "Arabidze, Meri"]
[Black "Gunina, Valentina"]
[Result "0-1"]
[ECO "D10"]
[WhiteElo "2441"]
[BlackElo "2480"]
[Annotator "ChessBase"]
[PlyCount "130"]
[EventDate "2021.11.08"]
[EventType "team-tourn"]
[EventCountry "SLO"]
[SourceTitle "playchess.com"]
[Source "ChessBase"]
[SourceQuality "1"]
[WhiteTeam "Georgia"]
[BlackTeam "Russia"]
[WhiteTeamCountry "GEO"]
[BlackTeamCountry "RUS"]
[TimeControl "40/5400+30:1800+30"]

1. d4 {[%emt 0:00:03]} d5 {[%emt 0:00:07]} 2. c4 {[%emt 0:00:09]} c6 {[%emt 0:
00:07]} 3. Nc3 {[%emt 0:00:14]} Nf6 {[%emt 0:00:07]} 4. e3 {[%emt 0:00:08]} Bf5
{[%emt 0:00:08]} 5. cxd5 {[%emt 0:00:22]} cxd5 {[%emt 0:00:05]} 6. Qb3 {
[%emt 0:00:11]} Nc6 {[%emt 0:00:11]} 7. Qxb7 {[%emt 0:00:13]} Bd7 {[%emt 0:00:
07]} 8. Qb3 {[%emt 0:00:11]} Rb8 {[%emt 0:00:06]} 9. Qd1 {[%emt 0:00:10]} e5 {
[%emt 0:00:27]} 10. Nf3 {[%emt 0:00:19]} Bd6 {[%emt 0:00:43]} 11. dxe5 {
[%emt 0:00:12]} Nxe5 {[%emt 0:00:21]} 12. Be2 {[%emt 0:00:10]} Nxf3+ {[%emt 0:
01:19]} 13. Bxf3 {[%emt 0:00:12]} Qc7 {[%emt 0:00:04]} 14. h3 {[%emt 0:00:42]}
O-O {[%emt 0:00:46]} 15. O-O {[%emt 0:00:32]} Rfd8 {[%emt 0:05:33]} 16. a4 {
[%emt 0:06:23]} Bh2+ {[%emt 0:03:52]} 17. Kh1 {[%emt 0:00:05]} Be5 {[%emt 0:00:
03]} 18. Qe2 {[%emt 0:10:49]} Be6 {[%emt 0:04:58]} 19. Rd1 {[%emt 0:06:25]} Rb4
{[%emt 0:03:31]} 20. Nb5 {[%emt 0:26:18]} Qd7 {[%emt 0:00:55]} 21. Nd4 {
[%emt 0:00:14]} Bxh3 {[%emt 0:02:26]} 22. Kg1 {[%emt 0:05:58]} Bg4 {[%emt 0:03:
41]} 23. a5 {[%emt 0:08:17]} Bc7 {[%emt 0:07:06]} 24. b3 {[%emt 0:02:29]} Rbb8
{[%emt 0:11:01]} 25. Bb2 {[%emt 0:03:07]} Re8 {[%emt 0:03:39]} 26. Rdc1 {
[%emt 0:03:30]} h5 {[%emt 0:06:00]} 27. Rc6 {[%emt 0:03:02]} Be5 {[%emt 0:08:
01]} 28. Rac1 {[%emt 0:00:43]} Ne4 {[%emt 0:02:38]} 29. R6c2 {[%emt 0:02:57]}
Rb7 {[%emt 0:03:04]} 30. Qd1 {[%emt 0:09:15]} Ng5 {[%emt 0:13:12]} 31. Bxg4 {
[%emt 0:01:04]} hxg4 {[%emt 0:00:02]} 32. Ne2 {[%emt 0:01:30]} Bxb2 {[%emt 0:
03:01]} 33. Rxb2 {[%emt 0:00:01]} Ne4 {[%emt 0:00:42]} 34. Nc3 {[%emt 0:03:15]}
g3 {[%emt 0:05:47]} 35. Nxe4 {[%emt 0:06:17]} Rxe4 {[%emt 0:00:01]} 36. fxg3 {
[%emt 0:01:38]} Rxe3 {[%emt 0:00:52]} 37. Rbc2 {[%emt 0:00:01]} Rb8 {[%emt 0:
00:40]} 38. Rc3 {[%emt 0:00:48]} Qe6 {[%emt 0:04:52]} 39. Qd4 {[%emt 0:00:29]}
Rxc3 {[%emt 0:00:33]} 40. Qxc3 {[%emt 0:01:23]} Qg4 {[%emt 0:03:52]} 41. Qd3 {
[%emt 0:06:24]} d4 {[%emt 0:08:25]} 42. Rd1 {[%emt 0:02:58]} Re8 {[%emt 0:00:
34]} 43. Qf3 {[%emt 0:01:20]} Qd7 {[%emt 0:00:39]} 44. b4 {[%emt 0:01:12]} Rb8
{[%emt 0:04:03]} 45. Qb3 {[%emt 0:05:55]} Qd6 {[%emt 0:00:19]} 46. Rf1 {
[%emt 0:03:36]} Rb7 {[%emt 0:00:26]} 47. Qc4 {[%emt 0:01:28]} Rc7 {[%emt 0:00:
32]} 48. Qb5 {[%emt 0:01:11]} g6 {[%emt 0:00:51]} 49. Rf3 {[%emt 0:03:06]} Kg7
{[%emt 0:01:00]} 50. Qg5 {[%emt 0:00:55]} Rc4 {[%emt 0:03:01]} 51. b5 {[%emt 0:
03:24]} d3 {[%emt 0:00:59]} 52. Qd2 {[%emt 0:01:02]} Qc5+ {[%emt 0:00:41]} 53.
Kh2 {[%emt 0:02:39]} Rc1 {[%emt 0:00:17]} 54. g4 {[%emt 0:00:26]} Qg1+ {
[%emt 0:03:10]} 55. Kh3 {[%emt 0:02:03]} Rc2 {[%emt 0:01:04]} 56. Qxd3 {
[%emt 0:00:32]} Qh1+ {[%emt 0:02:28]} 57. Kg3 {[%emt 0:00:01]} Rxg2+ {[%emt 0:
00:07]} 58. Kf4 {[%emt 0:00:03]} Qh2+ {[%emt 0:00:17]} 59. Ke4 {[%emt 0:00:56]}
Rxg4+ {[%emt 0:00:11]} 60. Kd5 {[%emt 0:00:21]} Qb8 {[%emt 0:01:49]} 61. Kc6 {
[%emt 0:01:07]} Qc8+ {[%emt 0:00:16]} 62. Kd6 {[%emt 0:00:03]} Rc4 {[%emt 0:00:
57]} 63. Rxf7+ {[%emt 0:00:59]} Kxf7 {[%emt 0:00:08]} 64. Qd5+ {[%emt 0:00:05]}
Kf8 {[%emt 0:00:11]} 65. Qf3+ {[%emt 0:00:27]} Kg7 {[%emt 0:00:07]} 0-1